fUSD/lending_fUSD_20260217
["ID","MTS","AMOUNT","RATE_DAILY","PERIOD"]
[405830161,1771345853001,-444.64,0.00017808,2]
[405830162,1771345853010,-500.0,0.00017808,2]
[405830163,1771345853020,-500.0,0.00017808,2]
[405830164,1771345853030,-500.0,0.00017808,2]
[405830165,1771345853040,-500.0,0.00017808,2]
[405830166,1771345853050,-500.0,0.00017808,2]
[405830167,1771345853060,-500.0,0.00017808,2]
[405830168,1771345853071,-500.0,0.00017808,2]
[405830169,1771345853081,-500.0,0.00017808,2]
[405830170,1771345853091,-500.0,0.00017808,2]
[405830171,1771345853102,-385.86675615,0.00017808,2]
[405830172,1771345853111,-300.0,0.00017808,2]
[405830173,1771345853124,-151.0,0.00017808,2]
[405830174,1771345853134,-151.0,0.00017808,2]
[405830175,1771345853144,-151.0,0.00017808,2]
[405830176,1771345853153,-154.469161,0.00017808,2]
[405830177,1771345853164,-800.0,0.00017808,2]
[405830178,1771345853175,-250.0,0.00017808,20]
[405830179,1771345853186,-250.0,0.00017808,20]
[405830180,1771345853196,-250.0,0.00017808,20]
[405830181,1771345853206,-250.0,0.00017808,20]
[405830182,1771345853216,-250.0,0.00017808,20]
[405830183,1771345853226,-250.0,0.00017808,20]
[405830184,1771345853236,-250.0,0.00017808,20]
[405830185,1771345853246,-250.0,0.00017808,20]
[405830186,1771345853257,-250.0,0.00017808,20]
[405830187,1771345853267,-250.0,0.00017808,20]
[405830188,1771345853278,-250.0,0.00017808,20]
[405830189,1771345853288,-250.0,0.00017808,20]
[405830190,1771345853298,-250.0,0.00017808,20]
[405830191,1771345853308,-250.0,0.00017808,20]
[405830192,1771345853319,-250.0,0.00017808,20]
[405830193,1771345853328,-250.0,0.00017808,20]
[405830194,1771345853340,-250.0,0.00017808,20]
[405830195,1771345853350,-250.0,0.00017808,20]
[405830196,1771345853360,-250.0,0.00017808,20]
[405830197,1771345853371,-250.0,0.00017808,20]
[405830198,1771345853381,-250.0,0.00017808,20]
[405830199,1771345853390,-250.0,0.00017808,20]
[405830200,1771345853400,-250.0,0.00017808,20]
[405830201,1771345853410,-250.0,0.00017808,20]
[405830202,1771345853421,-250.0,0.00017808,20]
[405830203,1771345853433,-250.0,0.00017808,20]
[405830204,1771345853443,-250.0,0.00017808,20]
[405830205,1771345853452,-250.0,0.00017808,20]
[405830206,1771345853463,-250.0,0.00017808,20]
[405830207,1771345853474,-250.0,0.00017808,20]
[405830208,1771345853484,-250.0,0.00017808,20]
[405830209,1771345853494,-250.0,0.00017808,20]
[405830210,1771345853504,-250.0,0.00017808,20]
[405830211,1771345853514,-250.0,0.00017808,20]
[405830212,1771345853523,-250.0,0.00017808,20]
[405830213,1771345853533,-250.0,0.00017808,20]
[405830214,1771345853544,-250.0,0.00017808,20]
[405830215,1771345853553,-250.0,0.00017808,20]
[405830216,1771345853563,-250.0,0.00017808,20]
[405830217,1771345853573,-250.0,0.00017808,20]
[405830218,1771345853583,-250.0,0.00017808,20]
[405830219,1771345853593,-250.0,0.00017808,20]
[405830220,1771345853603,-250.0,0.00017808,20]
[405830221,1771345853613,-250.0,0.00017808,20]
[405830222,1771345853623,-250.0,0.00017808,20]
[405830223,1771345853633,-250.0,0.00017808,20]
[405830224,1771345853643,-250.0,0.00017808,20]
[405830225,1771345853653,-250.0,0.00017808,20]
[405830226,1771345853664,-250.0,0.00017808,20]
[405830227,1771345853676,-250.0,0.00017808,20]
[405830228,1771345853686,-250.0,0.00017808,20]
[405830229,1771345853696,-250.0,0.00017808,20]
[405830230,1771345853706,-250.0,0.00017808,20]
[405830231,1771345853716,-250.0,0.00017808,20]
[405830232,1771345853727,-250.0,0.00017808,20]
[405830233,1771345853737,-250.0,0.00017808,20]
[405830234,1771345853747,-250.0,0.00017808,20]
[405830235,1771345853756,-250.0,0.00017808,20]
[405830236,1771345853766,-250.0,0.00017808,20]
[405830237,1771345853775,-250.0,0.00017808,20]
[405830238,1771345853784,-250.0,0.00017808,20]
[405830239,1771345853794,-250.0,0.00017808,20]
[405830240,1771345853803,-250.0,0.00017808,20]
[405830241,1771345853813,-250.0,0.00017808,20]
[405830242,1771345853822,-250.0,0.00017808,20]
[405830243,1771345853831,-250.0,0.00017808,20]
[405830244,1771345853841,-250.0,0.00017808,20]
[405830245,1771345853850,-250.0,0.00017808,20]
[405830246,1771345853860,-352.041673,0.00017808,20]
[405830247,1771345853870,-151.0,0.00017814,5]
[405830248,1771345853880,-194.72792766,0.00017817,2]
[405830249,1771345853889,-233.51889341,0.00017817,2]
[405830250,1771345853899,-673.10186571,0.00017817,2]
[405830251,1771345853908,-829.12830338,0.00017817,2]
[405830252,1771345853918,-309.29654756,0.00017817,2]
[405830253,1771345853928,-2000.0,0.0001782,2]
[405830254,1771345853938,-2000.0,0.0001782,2]
[405830255,1771345853947,-184.0,0.00017845,2]
[405830256,1771345853957,-500.0,0.00017855,2]
[405830257,1771345853966,-200.0,0.00017855,2]
[405830258,1771345853976,-500.0,0.00017856,2]
[405830259,1771345853986,-500.0,0.00017856,2]
[405830260,1771345853995,-200.0,0.00017856,2]
[405830261,1771345854005,-200.0,0.00017856,2]
[405830262,1771345854015,-350.0,0.00017863,2]
[405830263,1771345854024,-187.0,0.00017895,2]
[405830264,1771345854033,-5000.0,0.000179,2]
[405830265,1771345854044,-3003.49774087,0.000179,2]
[405830266,1771345854054,-11640.74929026,0.000179,2]
[405830267,1771345854063,-226.20610255,0.000179,2]
[405830268,1771345854073,-337.9226747,0.000179,2]
[405830269,1771345854083,-184.0,0.00017935,2]
[405830270,1771345854092,-500.0,0.00017972,2]
[405830271,1771345854102,-350.0,0.0001798,2]
[405830272,1771345854112,-836.63,0.00017999,2]
[405830273,1771345854122,-836.63,0.00017999,2]
[405830274,1771345854131,-836.63,0.00017999,2]
[405830275,1771345854141,-836.63,0.00017999,2]
[405830276,1771345854150,-836.73453833,0.00017999,2]
[405830277,1771345854160,-1563.42,0.00017999,2]
[405830278,1771345854170,-1563.42,0.00017999,2]
[405830279,1771345854180,-1563.42,0.00017999,2]
[405830280,1771345854190,-1563.42,0.00017999,2]
[405830281,1771345854200,-1563.52667565,0.00017999,2]
[405830282,1771345854209,-300.0,0.00017999,2]
[405830283,1771345854219,-300.0,0.00017999,2]
[405830284,1771345854229,-666.0,0.00017999,2]
[405830285,1771345854239,-339.07840537,0.00017999,2]
[405830286,1771345854249,-300.0,0.00017999,2]
[405830287,1771345854258,-666.0,0.00017999,2]
[405830288,1771345854267,-500.0,0.00017999,2]
[405830289,1771345854276,-500.0,0.00017999,2]
[405830290,1771345854285,-500.0,0.00017999,2]
[405830291,1771345854295,-500.0,0.00017999,2]
[405830292,1771345854304,-500.0,0.00017999,2]
[405830293,1771345854313,-500.0,0.00017999,2]
[405830294,1771345854323,-500.0,0.00017999,2]
[405830295,1771345854332,-500.0,0.00017999,2]
[405830296,1771345854342,-500.0,0.00017999,2]
[405830297,1771345854351,-500.0,0.00017999,2]
[405830298,1771345854360,-500.0,0.00017999,2]
[405830299,1771345854369,-500.0,0.00017999,2]
[405830300,1771345854378,-500.0,0.00017999,2]
[405830301,1771345854388,-500.0,0.00017999,2]
[405830302,1771345854397,-255.31,0.00017999,2]
[405830303,1771345854407,-300.0,0.00017999,2]
[405830304,1771345854417,-306.66078572,0.00017999,2]
[405830305,1771345854427,-666.0,0.00017999,2]
[405830306,1771345854438,-325.08121142,0.00017999,2]
[405830307,1771345854447,-300.0,0.00017999,2]
[405830308,1771345854457,-317.97612669,0.00017999,2]
[405830309,1771345854466,-150.0,0.00017999,2]
[405830310,1771345854475,-150.0,0.00017999,2]
[405830311,1771345854486,-150.0,0.00017999,2]
[405830312,1771345854495,-150.0,0.00017999,2]
[405830313,1771345854505,-150.0,0.00017999,2]
[405830314,1771345854514,-150.0,0.00017999,2]
[405830315,1771345854523,-150.0,0.00017999,2]
[405830316,1771345854532,-150.0,0.00017999,2]
[405830317,1771345854541,-150.0,0.00017999,2]
[405830318,1771345854550,-150.0,0.00017999,2]
[405830319,1771345854559,-166.80967626,0.00017999,2]
[405830320,1771345854569,-28610.11146738,0.00017999,2]
[405830321,1771345854578,-262.13935403,0.00018,2]
[405830322,1771345854587,-1315878.20442687,0.00018,2]
[405830323,1771345855263,-286.0,7.351e-05,2]
[405830324,1771345855273,-481.0,7.366e-05,2]
[405830325,1771345855282,-79.72430433,0.00013988,7]
[405830326,1771345855292,-1268.59963867,0.00013988,7]
[405830327,1771345855301,-209.8891357,0.00018,2]
[405830328,1771345855315,-630.86086713,0.00018,2]
[405830329,1771345855331,-1806.34701138,0.00018,2]
[405830330,1771345855346,-27172.91665203,0.00018,2]
[405830331,1771345855356,-6260.77965526,0.00018,2]
[405830332,1771345855367,-6890.0,0.00018,2]
[405830333,1771345855439,-52977.33592816,0.00018,2]
[405830334,1771345855648,-333.0,7.38e-05,2]
[405830335,1771345855658,-242.6954453,0.00018,2]
[405830336,1771345855888,-151.0,0.00017808,2]
[405830337,1771345855898,-990.68948977,0.00018,2]
[405830338,1771345855909,-3964.48314527,0.00018,2]
[405830339,1771345855921,-7009.70543571,0.00018,2]
[405830344,1771346399978,172.44438904,6.6e-05,3]
[405830345,1771346400022,172.44438904,6.6e-05,3]
[405830346,1771346400085,189.27768083,6.6e-05,3]
[405830347,1771346493346,3224.627,6.654e-05,2]
[405830348,1771346493413,308.399,6.654e-05,2]
[405830349,1771346543585,10000.01,6.69e-05,2]
[405830350,1771346543611,10000.01,6.69e-05,2]
[405830351,1771346543641,10000.01,6.69e-05,2]
[405830352,1771346543670,10000.01,6.69e-05,2]
[405830353,1771346543699,10000.01,6.69e-05,2]
[405830354,1771346543725,10000.01,6.69e-05,2]
[405830355,1771346543750,10000.01,6.69e-05,2]
[405830356,1771346543774,10000.01,6.69e-05,2]
[405830357,1771346543802,10000.01,6.69e-05,2]
[405830358,1771346543828,1466.984,6.69e-05,2]
[405830359,1771346543855,5000.01,6.69e-05,2]
[405830360,1771346543880,5000.01,6.69e-05,2]
[405830361,1771346543905,5000.01,6.69e-05,2]
[405830362,1771346543930,5000.01,6.69e-05,2]
[405830363,1771346543958,5000.01,6.69e-05,2]
[405830364,1771346548502,-5000.01,6.69e-05,2]
[405830365,1771346548614,-5000.01,6.69e-05,2]
[405830366,1771346548720,-5000.01,6.69e-05,2]
[405830367,1771346548836,-5000.01,6.69e-05,2]
[405830368,1771346550513,4625.32163386,6.5e-05,3]
[405830369,1771346550556,5744.15204233,6.5e-05,3]
[405830370,1771346550606,6862.9824508,6.5e-05,3]
[405830371,1771346550675,7981.81285926,6.5e-05,3]
[405830372,1771346550721,7981.81285926,6.5e-05,3]
[405830373,1771346551386,-5000.01,6.69e-05,2]
[405830374,1771346551476,-5000.01,6.69e-05,2]
[405830375,1771346551589,-5000.01,6.69e-05,2]
[405830376,1771346551689,-5000.01,6.69e-05,2]
[405830377,1771346551838,-5000.01,6.69e-05,2]
[405830378,1771346554522,-392.96766737,6.689e-05,2]
[405830379,1771346554550,-568.06632128,6.689e-05,2]
[405830380,1771346554582,-500.0,6.689e-05,2]
[405830381,1771346554611,-159.74599529,6.689e-05,2]
[405830382,1771346554784,-1758.45003212,6.69e-05,2]
[405830383,1771346554831,-5000.01,6.69e-05,2]
[405830384,1771346554857,-5000.01,6.69e-05,2]
[405830385,1771346554946,-5000.01,6.69e-05,2]
[405830386,1771346557330,-5000.01,6.69e-05,2]
[405830387,1771346560798,-5000.01,6.69e-05,2]
[405830388,1771346560813,-5000.01,6.69e-05,2]
[405830389,1771346560830,-5000.01,6.69e-05,2]
[405830390,1771346560861,-5000.01,6.69e-05,2]
[405830391,1771346560972,-5000.01,6.69e-05,2]
[405830392,1771346566751,-5000.01,6.69e-05,2]
[405830393,1771346566862,-5000.01,6.69e-05,2]
[405830394,1771346572809,-5000.01,6.69e-05,2]
[405830395,1771346572952,-5000.01,6.69e-05,2]
[405830396,1771346702069,150.0,0.0001116,7]
[405830397,1771346709284,153.0,6.69e-05,3]
[405830401,1771346760944,2347.56423252,6.5e-05,3]
[405830402,1771346761004,3336.46813716,6.5e-05,3]
[405830403,1771346761056,3666.10277204,6.5e-05,3]
[405830404,1771346761118,3995.73740692,6.5e-05,3]
[405830405,1771346768059,933.51,6.608e-05,2]
[405830407,1771346847322,5186.32,6.608e-05,2]
[405830408,1771346855590,3880.18,6.59e-05,2]
[405830409,1771346855613,10000.01,6.59e-05,2]
[405830410,1771346855636,10000.01,6.59e-05,2]
[405830411,1771346855658,10000.01,6.59e-05,2]
[405830412,1771346855681,10000.01,6.59e-05,2]
[405830413,1771346855708,10000.01,6.59e-05,2]
[405830414,1771346855730,10000.01,6.59e-05,2]
[405830415,1771346855755,10000.01,6.59e-05,2]
[405830416,1771346855778,10000.01,6.59e-05,2]
[405830417,1771346855800,10000.01,6.59e-05,2]
[405830418,1771346864633,-10000.01,6.59e-05,2]
[405830419,1771346864650,-10000.01,6.59e-05,2]
[405830420,1771346866114,-10000.01,6.59e-05,2]
[405830421,1771346866346,-10000.01,6.59e-05,2]
[405830422,1771346866489,-10000.01,6.59e-05,2]
[405830423,1771346866582,-10000.01,6.59e-05,2]
[405830424,1771346866749,-10000.01,6.59e-05,2]
[405830425,1771346866821,-10000.01,6.59e-05,2]
[405830426,1771346867020,-10000.01,6.59e-05,2]
[405830427,1771346869722,-5000.01,6.59e-05,2]
[405830428,1771346869846,-5000.01,6.59e-05,2]
[405830429,1771346870136,-5000.01,6.59e-05,2]
[405830430,1771346870306,-5000.01,6.59e-05,2]
[405830431,1771346870441,-5000.01,6.59e-05,2]
[405830432,1771346870555,-5000.01,6.59e-05,2]
[405830433,1771346875193,-10000.01,6.59e-05,2]
[405830434,1771346875274,-10000.01,6.59e-05,2]
[405830435,1771346875384,-5000.01,6.59e-05,2]
[405830436,1771346875671,-5000.01,6.59e-05,2]
[405830437,1771346875807,-5000.01,6.59e-05,2]
[405830438,1771346875936,-5000.01,6.59e-05,2]
[405830439,1771346876063,-5000.01,6.59e-05,2]
[405830440,1771346878042,-5000.01,6.59e-05,2]
[405830441,1771346881192,-1749.43375105,6.589e-05,2]
[405830442,1771346881227,-6501.1424979,6.59e-05,2]
[405830443,1771346881303,-10000.01,6.59e-05,2]
[405830444,1771346887210,-300.0,6.589e-05,2]
[405830445,1771346887236,-150.0,6.589e-05,2]
[405830446,1771346887295,-9100.01,6.59e-05,2]
[405830447,1771346887337,-10000.01,6.59e-05,2]
[405830448,1771346893287,-10000.01,6.59e-05,2]
[405830449,1771346893383,-10000.01,6.59e-05,2]
[405830450,1771346939854,730.66612914,6.4e-05,3]
[405830451,1771346939889,991.96588725,6.4e-05,3]
[405830452,1771346939932,1166.16572599,6.4e-05,3]
[405830453,1771346939967,1079.06580662,6.4e-05,3]
[405830456,1771346952057,4313.0,6.575e-05,2]
[405830458,1771347004983,153.0,6.575e-05,3]
[405830459,1771347013480,-150.0,6.587e-05,2]
[405830460,1771347015225,-57.0,6.587e-05,2]
[405830461,1771347015250,-93.0,6.587e-05,2]
[405830462,1771347016155,-58.0,6.587e-05,2]
[405830463,1771347016177,-92.0,6.587e-05,2]
[405830464,1771347019021,-59.0,6.587e-05,2]
[405830465,1771347019045,-91.0,6.588e-05,2]
[405830466,1771347021374,219.0,7.249e-05,12]
[405830476,1771347032034,-209.0,6.588e-05,2]
[405830477,1771347032043,-88.38457148,6.588e-05,2]
[405830478,1771347032061,-211.61542852,6.588e-05,2]
[405830479,1771347032070,-1200.0,6.588e-05,2]
[405830480,1771347032079,-656.0,6.589e-05,2]
[405830481,1771347032089,-330.95225017,6.589e-05,2]
[405830482,1771347032098,-211.92183193,6.589e-05,2]
[405830483,1771347032128,-176.36956909,6.589e-05,2]
[405830484,1771347032138,-500.0,6.589e-05,2]
[405830485,1771347032147,-645.96684587,6.589e-05,2]
[405830486,1771347032156,-200.0,6.589e-05,2]
[405830487,1771347032165,-645.96684587,6.589e-05,2]
[405830489,1771347032175,-500.0,6.589e-05,2]
[405830491,1771347032184,-645.96684587,6.589e-05,2]
[405830493,1771347032193,-500.0,6.589e-05,2]
[405830494,1771347032202,-645.96684587,6.589e-05,2]
[405830495,1771347032211,-645.96684587,6.589e-05,2]
[405830496,1771347032220,-645.96684587,6.589e-05,2]
[405830497,1771347032229,-645.96684587,6.589e-05,2]
[405830498,1771347032239,-645.96684587,6.589e-05,2]
[405830499,1771347032248,-645.96684587,6.589e-05,2]
[405830500,1771347032257,-645.96684587,6.589e-05,2]
[405830501,1771347032266,-645.96684587,6.589e-05,2]
[405830502,1771347032275,-645.96684587,6.589e-05,2]
[405830503,1771347032284,-645.96684587,6.589e-05,2]
[405830504,1771347032293,-645.96684587,6.589e-05,2]
[405830505,1771347032306,-645.96684587,6.589e-05,2]
[405830506,1771347032315,-645.96684587,6.589e-05,2]
[405830507,1771347032324,-645.96684587,6.589e-05,2]
[405830508,1771347032333,-645.96684587,6.589e-05,2]
[405830509,1771347032342,-645.96684587,6.589e-05,2]
[405830510,1771347032351,-645.96684587,6.589e-05,2]
[405830511,1771347032360,-645.96684587,6.589e-05,2]
[405830512,1771347032369,-645.96684587,6.589e-05,2]
[405830513,1771347032378,-645.96684587,6.589e-05,2]
[405830514,1771347032387,-645.96684587,6.589e-05,2]
[405830515,1771347032395,-645.96684587,6.589e-05,2]
[405830516,1771347032404,-645.96684587,6.589e-05,2]
[405830517,1771347032414,-645.96684587,6.589e-05,2]
[405830518,1771347032423,-645.96684587,6.589e-05,2]
[405830519,1771347032432,-645.96684587,6.589e-05,2]
[405830520,1771347032441,-645.96684587,6.589e-05,2]
[405830521,1771347032450,-645.96684587,6.589e-05,2]
[405830522,1771347032459,-645.96684587,6.589e-05,2]
[405830523,1771347032468,-645.96684587,6.589e-05,2]
[405830524,1771347032478,-645.96684587,6.589e-05,2]
[405830525,1771347032488,-645.96684587,6.589e-05,2]
[405830526,1771347032498,-645.96684587,6.589e-05,2]
[405830527,1771347032508,-645.96684587,6.589e-05,2]
[405830528,1771347032519,-645.96684587,6.589e-05,2]
[405830529,1771347032529,-645.96684587,6.589e-05,2]
[405830530,1771347032538,-645.96684587,6.589e-05,2]
[405830531,1771347032549,-645.96684587,6.589e-05,2]
[405830532,1771347032558,-645.96684587,6.589e-05,2]
[405830533,1771347032567,-645.96684587,6.589e-05,2]
[405830534,1771347032578,-645.96684587,6.589e-05,2]
[405830535,1771347032588,-645.96684587,6.589e-05,2]
[405830536,1771347032598,-645.96684587,6.589e-05,2]
[405830537,1771347032607,-645.96684587,6.589e-05,2]
[405830538,1771347032617,-645.96684587,6.589e-05,2]
[405830539,1771347032626,-645.96684587,6.589e-05,2]
[405830540,1771347032637,-657.90848228,6.589e-05,2]
[405830541,1771347032647,-402.55315632,6.589e-05,2]
[405830547,1771347037862,-255.35532596,6.589e-05,2]
[405830548,1771347037872,-657.90848228,6.589e-05,2]
[405830549,1771347037881,-657.90848228,6.589e-05,2]
[405830550,1771347037890,-657.90848228,6.589e-05,2]
[405830551,1771347037899,-657.90848228,6.589e-05,2]
[405830552,1771347037908,-657.90848228,6.589e-05,2]
[405830553,1771347037918,-657.90848228,6.589e-05,2]
[405830554,1771347037927,-657.90848228,6.589e-05,2]
[405830555,1771347037936,-657.90848228,6.589e-05,2]
[405830556,1771347037945,-657.90848228,6.589e-05,2]
[405830557,1771347037954,-657.90848228,6.589e-05,2]
[405830558,1771347037963,-657.90848228,6.589e-05,2]
[405830559,1771347037973,-657.90848228,6.589e-05,2]
[405830560,1771347037984,-657.90848228,6.589e-05,2]
[405830561,1771347037994,-657.90848228,6.589e-05,2]
[405830562,1771347038003,-657.90848228,6.589e-05,2]
[405830563,1771347038013,-657.90848228,6.589e-05,2]
[405830564,1771347038022,-657.90848228,6.589e-05,2]
[405830565,1771347038032,-657.90848228,6.589e-05,2]
[405830566,1771347038041,-657.90848228,6.589e-05,2]
[405830567,1771347038051,-657.90848228,6.589e-05,2]
[405830568,1771347038060,-657.90848228,6.589e-05,2]
[405830569,1771347038070,-657.90848228,6.589e-05,2]
[405830570,1771347038080,-657.90848228,6.589e-05,2]
[405830571,1771347038092,-657.90848228,6.589e-05,2]
[405830572,1771347038104,-657.90848228,6.589e-05,2]
[405830573,1771347038115,-673.24994418,6.589e-05,2]
[405830574,1771347038131,-673.24994418,6.589e-05,2]
[405830575,1771347038141,-673.24994418,6.589e-05,2]
[405830576,1771347038152,-673.24994418,6.589e-05,2]
[405830577,1771347038163,-673.24994418,6.589e-05,2]
[405830578,1771347038173,-673.24994418,6.589e-05,2]
[405830579,1771347038183,-673.24994418,6.589e-05,2]
[405830581,1771347038194,-673.24994418,6.589e-05,2]
[405830583,1771347038204,-673.24994418,6.589e-05,2]
[405830585,1771347038214,-673.24994418,6.589e-05,2]
[405830586,1771347038224,-673.24994418,6.589e-05,2]
[405830587,1771347038234,-673.24994418,6.589e-05,2]
[405830588,1771347038244,-673.24994418,6.589e-05,2]
[405830589,1771347038255,-829.56580145,6.59e-05,2]
[405830590,1771347038267,-609.52608378,6.59e-05,2]
[405830591,1771347038277,-416138.71953445,6.59e-05,2]
[405830592,1771347038295,-2764379.58796765,6.59e-05,2]
[405830593,1771347038307,-241.12,6.6e-05,2]
[405830594,1771347038326,-6961.78336772,6.6e-05,2]
[405830595,1771347038338,-226.20610255,6.6e-05,2]
[405830597,1771347038358,-15274.77934266,6.6e-05,2]
[405830599,1771347038369,-3826.83388884,6.6e-05,2]
[405830601,1771347038379,-250.0,6.639e-05,2]
[405830603,1771347038390,-250.0,6.669e-05,2]
[405830605,1771347038401,-1000.0,6.689e-05,2]
[405830607,1771347038413,-600.0,6.689e-05,2]
[405830609,1771347038424,-1000.0,6.69e-05,2]
[405830611,1771347038434,-389.83552787,6.69e-05,2]
[405830613,1771347038444,-299.99,6.783e-05,2]
[405830615,1771347038455,-9999.99,6.783e-05,2]
[405830617,1771347038465,-2106.28,6.783e-05,2]
[405830619,1771347038475,-761.78,6.783e-05,2]
[405830621,1771347038485,-9999.99,6.783e-05,2]
[405830623,1771347038495,-9999.99,6.783e-05,2]
[405830625,1771347038505,-4999.99,6.783e-05,2]
[405830627,1771347038515,-14638.92,6.783e-05,2]
[405830629,1771347038525,-999.99,6.783e-05,2]
[405830631,1771347038538,-14037.81,6.783e-05,2]
[405830633,1771347038548,-2984.7,6.783e-05,2]
[405830635,1771347038563,-113529.54,6.783e-05,2]
[405830637,1771347038573,-7136.18,6.783e-05,2]
[405830639,1771347038583,-311.5,6.783e-05,2]
[405830641,1771347038593,-1542.1,6.783e-05,2]
[405830643,1771347038603,-150.99,6.783e-05,2]
[405830645,1771347038614,-515.68,6.783e-05,2]
[405830647,1771347038625,-1473.32,6.783e-05,2]
[405830649,1771347038635,-81423.96,6.783e-05,2]
[405830650,1771347038646,-29124.47,6.783e-05,2]
[405830652,1771347038656,-499.99,6.783e-05,2]
[405830654,1771347038665,-9999.99,6.783e-05,2]
[405830656,1771347038676,-9999.99,6.783e-05,2]
[405830658,1771347038687,-53370.16,6.787e-05,2]
[405830660,1771347038696,-9999.99,6.788e-05,2]
[405830662,1771347038706,-3706.48,6.788e-05,2]
[405830664,1771347038716,-150.99,6.788e-05,2]
[405830666,1771347038726,-337.9226747,6.791e-05,2]
[405830668,1771347038741,-1121.43775548,6.89e-05,2]
[405830670,1771347038752,-586.95,6.89e-05,2]
[405830672,1771347038762,-178.0,6.893e-05,2]
[405830674,1771347038772,-227.0,6.9e-05,2]
[405830676,1771347038782,-356.0,6.907e-05,2]
[405830678,1771347038792,-394.0,6.92e-05,2]
[405830680,1771347038801,-336.0,6.934e-05,2]
[405830681,1771347038813,-188.0,6.948e-05,2]
[405830683,1771347038823,-1238.0,6.97e-05,2]
[405830685,1771347038833,-1863.0,6.984e-05,2]
[405830687,1771347038843,-1756.0,6.998e-05,2]
[405830689,1771347038852,-1049.0,7.012e-05,2]
[405830691,1771347038861,-979.0,7.026e-05,2]
[405830693,1771347038871,-2185.89,7.079e-05,2]
[405830695,1771347038880,-25420.76,7.104e-05,2]
[405830697,1771347038890,-586.95,7.164e-05,2]
[405830699,1771347038899,-743.66,7.191e-05,2]
[405830701,1771347038908,-194.9,7.2e-05,2]
[405830703,1771347038918,-1680.0,7.247e-05,2]
[405830705,1771347038930,-193.0,7.248e-05,2]
[405830707,1771347038940,-420.0,7.248e-05,2]
[405830709,1771347038950,-255.0,7.248e-05,2]
[405830711,1771347038959,-250.0,7.249e-05,2]
[405830713,1771347038972,-166.66,7.264e-05,2]
[405830715,1771347038982,-586.95,7.438e-05,2]
[405830717,1771347038991,-272.0,7.457e-05,2]
[405830719,1771347039001,-336.0,7.472e-05,2]
[405830721,1771347039010,-433.0,7.487e-05,2]
[405830723,1771347039020,-352.0,7.502e-05,2]
[405830725,1771347039030,-166.66,7.504e-05,2]
[405830727,1771347039039,-347.0,7.516e-05,2]
[405830729,1771347039049,-23747.49,7.645e-05,2]
[405830731,1771347039061,-1600.0,7.655e-05,2]
[405830733,1771347039071,-956.0,7.68e-05,2]
[405830735,1771347039081,-1021.0,7.696e-05,2]
[405830737,1771347039090,-1152.0,7.711e-05,2]
[405830739,1771347039100,-586.95,7.712e-05,2]
[405830741,1771347039110,-1736.0,7.726e-05,2]
[405830743,1771347039119,-183.0,7.742e-05,2]
[405830745,1771347039129,-166.66,7.743e-05,2]
[405830747,1771347039139,-171.0,7.757e-05,2]
[405830749,1771347039148,-328.0,7.772e-05,2]
[405830751,1771347039158,-241.69,7.919e-05,2]
[405830753,1771347039169,-9439.890323,7.945e-05,2]
[405830755,1771347039179,-28503.469608,7.945e-05,2]
[405830758,1771347039190,-2351.0,7.972e-05,2]
[405830760,1771347039201,-587.0,7.973e-05,2]
[405830761,1771347039210,-433.0,7.973e-05,2]
[405830763,1771347039221,-166.66,7.983e-05,2]
[405830766,1771347039231,-586.95,7.986e-05,2]
[405830768,1771347039243,-1285.1,8.178e-05,2]
[405830769,1771347039253,-500.0,8.219e-05,2]
[405830771,1771347039264,-500.0,8.219e-05,2]
[405830774,1771347039277,-154.86539372,8.219e-05,2]
[405830776,1771347039289,-500.0,8.219e-05,2]
[405830778,1771347039300,-500.0,8.219e-05,2]
[405830780,1771347039314,-150.0,8.219e-05,2]
[405830782,1771347039324,-500.0,8.219e-05,2]
[405830784,1771347039334,-500.0,8.219e-05,2]
[405830786,1771347039344,-500.0,8.219e-05,2]